{"text_format":"1","workbook":"xlsx","n_sheets":6,"sheets":["Mahmoud","سوستة 20","سوستة10مم","gds120htc200fs28","باور20a","Sheet1"],"not_rendered":{"charts":0,"images":0,"macros":1,"external_links":0,"defined_names":0,"comments":0,"pivot_tables":0},"unopened":[],"bounds":{"document_bytes":16777216,"sheet_cells":100000,"rows_first":2000,"rows_last":500,"rows_between":2000,"halvings":0,"cell_chars":16384,"cell_head_chars":4096},"cells_cut":0,"cells_raw":0,"read":"whole","date_system":"1900"}

{"sheet":"Mahmoud","index":0,"n_rows":59,"n_cols":14,"rows_kept":59,"cut":false,"hidden":false,"merged":[[57,0,57,5],[0,4,1,6],[2,0,2,9],[3,0,4,5],[3,8,4,9],[6,0,7,0],[6,1,7,1],[6,2,7,2],[6,3,7,3],[6,4,7,4],[6,5,7,5],[6,6,7,6],[6,7,7,7],[6,8,7,8],[6,9,7,9],[8,7,8,9]]}
[null,null,null,null,"بطاقة كارت صنف"]
[]
[]
["سوستة10مم",null,null,null,null,null,"كود الصنف","رقم كارت الصنف","المخزن :"]
[null,null,null,null,null,null,null,14]
[]
["رقم اذن اضافة الوارد","تاريخ اذن اضافة  الوارد","وارد مشتريات وتحويل مشروع","رقم اذن الصرف","تاريخ اذن الصرف","صرف د الموقع","الرصيد","سعر توريد الصنف","جهه التوريد","ملاحظات"]
[]
[null,null,null,null,null,null,null," رصيد اول المدة",null,null,null,null,null,"رقم التسوية"]
[null,"2018-11-26",1,null,null,null,{"$f":"G9+C10-F10","v":1},50,"عنابة","صب تابع107ج/sh"]
[]
[]
[]
[]
[]
[]
[]
[]
[]
[]
[]
[]
[]
[]
[]
[]
[]
[]
[]
[]
[]
[]
[]
[]
[]
[]
[]
[]
[]
[]
[]
[]
[]
[]
[]
[]
[]
[]
[]
[]
[]
[]
[]
[]
[]
[]
[]
["الرصيد"]
[null,null,{"$f":"SUM(C10:C57)","v":1},null,null,{"$f":"SUM(F10:F57)","v":0}]

{"sheet":"سوستة 20","index":1,"n_rows":59,"n_cols":14,"rows_kept":59,"cut":false,"hidden":false,"merged":[[57,0,57,5],[0,4,1,6],[2,0,2,9],[3,0,4,5],[3,8,4,9],[6,0,7,0],[6,1,7,1],[6,2,7,2],[6,3,7,3],[6,4,7,4],[6,5,7,5],[6,6,7,6],[6,7,7,7],[6,8,7,8],[6,9,7,9],[8,7,8,9]]}
[null,null,null,null,"بطاقة كارت صنف"]
[]
[]
["سوستة10مم",null,null,null,null,null,"كود الصنف","رقم كارت الصنف","المخزن :"]
[null,null,null,null,null,null,null,14]
[]
["رقم اذن اضافة الوارد","تاريخ اذن اضافة  الوارد","وارد مشتريات وتحويل مشروع","رقم اذن الصرف","تاريخ اذن الصرف","صرف د الموقع","الرصيد","سعر توريد الصنف","جهه التوريد","ملاحظات"]
[]
[null,null,null,null,null,null,null," رصيد اول المدة",null,null,null,null,null,"رقم التسوية"]
[null,"2018-11-26",1,null,null,null,{"$f":"G9+C10-F10","v":1},50,"عنابة","صب تابع107ج/sh"]
[]
[]
[]
[]
[]
[]
[]
[]
[]
[]
[]
[]
[]
[]
[]
[]
[]
[]
[]
[]
[]
[]
[]
[]
[]
[]
[]
[]
[]
[]
[]
[]
[]
[]
[]
[]
[]
[]
[]
[]
[]
[]
[]
[]
[]
[]
[]
["الرصيد"]
[null,null,{"$f":"SUM(C10:C57)","v":1},null,null,{"$f":"SUM(F10:F57)","v":0}]

{"sheet":"سوستة10مم","index":2,"n_rows":59,"n_cols":14,"rows_kept":59,"cut":false,"hidden":false,"merged":[[57,0,57,5],[0,4,1,6],[2,0,2,9],[3,0,4,5],[3,8,4,9],[6,0,7,0],[6,1,7,1],[6,2,7,2],[6,3,7,3],[6,4,7,4],[6,5,7,5],[6,6,7,6],[6,7,7,7],[6,8,7,8],[6,9,7,9],[8,7,8,9]]}
[null,null,null,null,"بطاقة كارت صنف"]
[]
[]
["سوستة10مم",null,null,null,null,null,"كود الصنف","رقم كارت الصنف","المخزن :"]
[null,null,null,null,null,null,null,14]
[]
["رقم اذن اضافة الوارد","تاريخ اذن اضافة  الوارد","وارد مشتريات وتحويل مشروع","رقم اذن الصرف","تاريخ اذن الصرف","صرف د الموقع","الرصيد","سعر توريد الصنف","جهه التوريد","ملاحظات"]
[]
[null,null,null,null,null,null,null," رصيد اول المدة",null,null,null,null,null,"رقم التسوية"]
[null,"2018-11-26",1,null,null,null,{"$f":"G9+C10-F10","v":1},50,"عنابة","صب تابع107ج/sh"]
[]
[]
[]
[]
[]
[]
[]
[]
[]
[]
[]
[]
[]
[]
[]
[]
[]
[]
[]
[]
[]
[]
[]
[]
[]
[]
[]
[]
[]
[]
[]
[]
[]
[]
[]
[]
[]
[]
[]
[]
[]
[]
[]
[]
[]
[]
[]
["الرصيد"]
[null,null,{"$f":"SUM(C10:C57)","v":1},null,null,{"$f":"SUM(F10:F57)","v":0}]

{"sheet":"gds120htc200fs28","index":3,"n_rows":59,"n_cols":18,"rows_kept":59,"cut":false,"hidden":false,"merged":[[0,5,1,10],[2,0,2,13],[3,0,4,8],[3,12,4,13],[6,0,7,0],[6,1,7,1],[6,2,7,2],[6,3,7,3],[6,4,7,4],[6,5,7,5],[6,12,7,12],[6,13,7,13],[8,11,8,13],[57,0,57,8],[6,6,7,6],[6,7,7,7],[6,8,7,8],[6,9,7,9],[6,10,7,10],[6,11,7,11]]}
[null,null,null,null,null,"بطاقة كارت صنف"]
[]
[]
["gds120htc200fs28",null,null,null,null,null,null,null,null,null,"كود الصنف","رقم كارت الصنف","المخزن :"]
[null,null,null,null,null,null,null,null,null,null,null,14]
[]
["رقم اذن اضافة الوارد","تاريخ اذن اضافة  الوارد","وارد مشتريات وتحويل مشروع","ع من الصيانة والمامورية","رقم اذن الصرف","تاريخ اذن الصرف","صرف صيانة","صرف تحويل","صرف د الموقع","فرق الصيانة","الرصيد","سعر توريد الصنف","جهه التوريد","ملاحظات"]
[]
[null,null,null,null,null,null,null,null,null,null,null," رصيد اول المدة",null,null,null,null,null,"رقم التسوية"]
[null,"بدون",16,null,null,null,null,null,null,{"$f":"G10-D10","v":0},{"$f":"K9+C10-I10","v":16},630,"الفراعنة","صب تابع107ج"]
[null,null,null,null,null,null,null,null,null,{"$f":"G11-D11","v":0},{"$f":"K10+C11-H11-I11+J11","v":16}]
[null,null,null,null,null,null,null,null,null,{"$f":"G12-D12","v":0},{"$f":"K11+C12-G12-H12-I12+J12","v":16}]
[null,null,null,null,null,null,null,null,null,0,16]
[null,null,null,null,null,null,null,null,null,0,16]
[null,null,null,null,null,null,null,null,null,0,16]
[null,null,null,null,null,null,null,null,null,0,16]
[null,null,null,null,null,null,null,null,null,0,16]
[null,null,null,null,null,null,null,null,null,0,16]
[null,null,null,null,null,null,null,null,null,0,16]
[null,null,null,null,null,null,null,null,null,0,16]
[null,null,null,null,null,null,null,null,null,0,16]
[null,null,null,null,null,null,null,null,null,0,16]
[null,null,null,null,null,null,null,null,null,0,16]
[null,null,null,null,null,null,null,null,null,0,16]
[null,null,null,null,null,null,null,null,null,0,16]
[null,null,null,null,null,null,null,null,null,0,16]
[null,null,null,null,null,null,null,null,null,0,16]
[null,null,null,null,null,null,null,null,null,0,16]
[null,null,null,null,null,null,null,null,null,0,16]
[null,null,null,null,null,null,null,null,null,0,16]
[null,null,null,null,null,null,null,null,null,0,16]
[null,null,null,null,null,null,null,null,null,0,16]
[null,null,null,null,null,null,null,null,null,0,16]
[null,null,null,null,null,null,null,null,null,0,16]
[null,null,null,null,null,null,null,null,null,0,16]
[null,null,null,null,null,null,null,null,null,0,16]
[null,null,null,null,null,null,null,null,null,0,16]
[null,null,null,null,null,null,null,null,null,0,16]
[null,null,null,null,null,null,null,null,null,0,16]
[null,null,null,null,null,null,null,null,null,0,16]
[null,null,null,null,null,null,null,null,null,0,16]
[null,null,null,null,null,null,null,null,null,0,16]
[null,null,null,null,null,null,null,null,null,0,16]
[null,null,null,null,null,null,null,null,null,0,16]
[null,null,null,null,null,null,null,null,null,0,16]
[null,null,null,null,null,null,null,null,null,0,16]
[null,null,null,null,null,null,null,null,null,0,16]
[null,null,null,null,null,null,null,null,null,0,16]
[null,null,null,null,null,null,null,null,null,0,16]
[null,null,null,null,null,null,null,null,null,0,16]
[null,null,null,null,null,null,null,null,null,0,16]
[null,null,null,null,null,null,null,null,null,0,16]
[null,null,null,null,null,null,null,null,null,0,16]
[null,null,null,null,null,null,null,null,null,0,16]
[null,null,null,null,null,null,null,null,null,0,16]
[null,null,null,null,null,null,null,null,null,0,16]
[null,null,null,null,null,null,null,null,null,0,16]
["الرصيد",null,null,null,null,null,null,null,null,{"$f":"G58-D58","v":0},16]
[null,null,{"$f":"SUM(C10:C57)","v":16},{"$f":"SUM(D10:D57)","v":0},null,null,null,{"$f":"SUM(H10:H57)","v":0},{"$f":"SUM(I10:I57)","v":0},{"$f":"G59-D59","v":0},{"$f":"K58","v":16}]

{"sheet":"باور20a","index":4,"n_rows":59,"n_cols":18,"rows_kept":59,"cut":false,"hidden":false,"merged":[[0,5,1,10],[2,0,2,13],[3,0,4,8],[3,12,4,13],[6,0,7,0],[6,1,7,1],[6,2,7,2],[6,3,7,3],[6,4,7,4],[6,5,7,5],[6,12,7,12],[6,13,7,13],[8,11,8,13],[57,0,57,8],[6,6,7,6],[6,7,7,7],[6,8,7,8],[6,9,7,9],[6,10,7,10],[6,11,7,11]]}
[null,null,null,null,null,"بطاقة كارت صنف",null,null,null,null,null,"انظر الى المعادلة التي تم إدخالها في العمود j"]
["j","h","g","d",null,null,null,null,null,null,null,"هل حققت الغرض المطلوب ام لا"]
[]
["باور20a",null,null,null,null,null,null,null,null,null,"كود الصنف","رقم كارت الصنف","المخزن :"]
[null,null,null,null,null,null,null,null,null,null,null,14]
[]
["رقم اذن اضافة الوارد","تاريخ اذن اضافة  الوارد","وارد مشتريات وتحويل مشروع","ع من الصيانة والمامورية","رقم اذن الصرف","تاريخ اذن الصرف","صرف صيانة","صرف تحويل","صرف د الموقع","فرق الصيانة","الرصيد","سعر توريد الصنف","جهه التوريد","ملاحظات"]
[]
[null,null,null,null,null,null,null,null,null,null,null," رصيد اول المدة",null,null,null,null,null,"رقم التسوية"]
[1621,"19/11/2018",1,null,null,null,null,null,null,{"$f":"IF($D$7=\"ع من الصيانة والمامورية\",\"\",G10-D10)","v":""},{"$f":"K9+C10-I10","v":1},650,"الفراعنة","صبري تابع107ج",null,null,null,10703]
[7065,"2018-11-10",1,null,null,null,null,null,null,{"$f":"IF($D$7=\"ع من الصيانة والمامورية\",\"\",G11-D11)","v":""},{"$f":"IFERROR(K10+C11-H11-I11+J11,\"\")","v":""},{"$f":"700*0.9","v":630},"الفراعنة","صبري بيان جرد",null,null,null,1105]
[null,null,null,null,null,null,null,null,null,"",{"$f":"IFERROR(K11+C12-H12-I12+J12,\"\")","v":""}]
[null,null,null,null,null,null,null,null,null,"",""]
[null,null,null,null,null,null,null,null,null,"",""]
[null,null,null,null,null,null,null,null,null,"",""]
[null,null,null,null,null,null,null,null,null,"",""]
[null,null,null,null,null,null,null,null,null,"",""]
[null,null,null,null,null,null,null,null,null,"",""]
[null,null,null,null,null,null,null,null,null,"",""]
[null,null,null,null,null,null,null,null,null,"",""]
[null,null,null,null,null,null,null,null,null,"",""]
[null,null,null,null,null,null,null,null,null,"",""]
[null,null,null,null,null,null,null,null,null,"",""]
[null,null,null,null,null,null,null,null,null,"",""]
[null,null,null,null,null,null,null,null,null,"",""]
[null,null,null,null,null,null,null,null,null,"",""]
[null,null,null,null,null,null,null,null,null,"",""]
[null,null,null,null,null,null,null,null,null,"",""]
[null,null,null,null,null,null,null,null,null,"",""]
[null,null,null,null,null,null,null,null,null,"",""]
[null,null,null,null,null,null,null,null,null,"",""]
[null,null,null,null,null,null,null,null,null,"",""]
[null,null,null,null,null,null,null,null,null,"",""]
[null,null,null,null,null,null,null,null,null,"",""]
[null,null,null,null,null,null,null,null,null,"",""]
[null,null,null,null,null,null,null,null,null,"",""]
[null,null,null,null,null,null,null,null,null,"",""]
[null,null,null,null,null,null,null,null,null,"",""]
[null,null,null,null,null,null,null,null,null,"",""]
[null,null,null,null,null,null,null,null,null,"",""]
[null,null,null,null,null,null,null,null,null,"",""]
[null,null,null,null,null,null,null,null,null,"",""]
[null,null,null,null,null,null,null,null,null,"",""]
[null,null,null,null,null,null,null,null,null,"",""]
[null,null,null,null,null,null,null,null,null,"",""]
[null,null,null,null,null,null,null,null,null,"",""]
[null,null,null,null,null,null,null,null,null,"",""]
[null,null,null,null,null,null,null,null,null,"",""]
[null,null,null,null,null,null,null,null,null,"",""]
[null,null,null,null,null,null,null,null,null,"",""]
[null,null,null,null,null,null,null,null,null,"",""]
[null,null,null,null,null,null,null,null,null,"",""]
[null,null,null,null,null,null,null,null,null,"",""]
[null,null,null,null,null,null,null,null,null,"",""]
[null,null,null,null,null,null,null,null,null,"",""]
[null,null,null,null,null,null,null,null,null,"",""]
[null,null,null,null,null,null,null,null,null,"",""]
["الرصيد",null,null,null,null,null,null,null,null,"",""]
[null,null,{"$f":"SUM(C10:C57)","v":2},{"$f":"SUM(D10:D57)","v":0},null,null,null,{"$f":"SUM(H10:H57)","v":0},{"$f":"SUM(I10:I57)","v":0},{"$f":"G59-D59","v":0},{"$f":"K58","v":""}]

{"sheet":"Sheet1","index":5,"n_rows":0,"n_cols":0,"rows_kept":0,"cut":false,"hidden":false,"merged":[]}